bitfinex/quotes_ETHUSD_20220305
["timestamp","ask_amount","ask_price","bid_price","bid_amount"]
[1646454855288,16.35,2618.5,2618.1,0.4092655]
[1646454855492,16.35,2618.5,2618.1,0.4140243]
[1646454855686,16.35,2618.5,2618.4,0.00083767]
[1646454856537,16.35,2618.5,2618.2,0.0047588]
[1646454857037,16.35,2618.5,2618.3,0.00083769]
[1646454857437,17.30579,2618.5,2618.3,0.00083769]
[1646454857835,17.30579,2618.5,2618.2,0.0047588]
[1646454858042,17.25579,2618.5,2618.3,0.00274761]
[1646454858937,17.25579,2618.5,2618.1,0.0095176]
[1646454858938,11.65,2618.3,2618.1,0.0095176]
[1646454859136,11.65,2618.3,2618.2,0.02404522]
[1646454859137,15.5953,2618.3,2618.2,0.02404522]
[1646454860487,12.5953,2618.3,2618.2,0.02404522]
[1646454860693,0.9453,2618.3,2618.2,0.02404522]
[1646454860889,3.0,2618.5,2618.2,0.02404522]
[1646454861289,0.05028723,2617.9,2617.8,0.03674898]
[1646454861488,0.05028723,2617.9,2617.8,0.0529932]
[1646454861688,0.05028723,2617.9,2617.8,0.00328222]
[1646454861890,0.05028723,2617.9,2617.4,0.01936878]
[1646454862089,0.05028723,2617.9,2617.5,0.03432112]
[1646454862489,0.00028723,2617.9,2617.5,0.03432112]
[1646454864837,0.00028723,2617.9,2617.3,0.3190131]
[1646454865338,0.00028723,2617.9,2617.6,0.00271832]
[1646454865540,0.00028723,2617.9,2617.6,0.30771832]
[1646454865744,0.00028723,2617.9,2617.6,0.31048096]
[1646454865940,0.00028723,2617.9,2617.7,0.00276264]
[1646454866140,0.00028723,2617.9,2617.8,0.305]
[1646454867285,0.00028723,2617.9,2617.8,0.30776136]
[1646454867685,0.00028723,2617.9,2617.8,0.20776136]
[1646454868086,1.02183825,2617.9,2617.8,0.20776136]
[1646454868291,1.02183825,2617.9,2617.8,0.205]
[1646454869088,1.03983397,2617.9,2617.8,0.205]
[1646454873740,1.05891656,2617.9,2617.8,0.205]
[1646454879738,4.55891656,2617.9,2617.8,0.205]
[1646454879943,4.55891656,2617.9,2617.7,0.02389344]
[1646454879944,2.16181656,2617.9,2617.7,0.02389344]
[1646454880146,3.5,2617.8,2617.7,0.02389344]
[1646454880450,11.65,2617.6,2617.1,0.0292875]
[1646454880650,3.5,2617.8,2616.7,0.2054345]
[1646454880651,12.60625,2617.2,2616.7,0.0144345]
[1646454880848,1.23429319,2616.9,2616.6,0.0166845]
[1646454881053,4.7,2616.7,2616.0,0.08526706]
[1646454881246,19.85,2616.6,2616.0,0.08526706]
[1646454881442,20.8642,2616.6,2616.0,0.08526706]
[1646454881644,20.8642,2616.6,2615.7,0.0322592]
[1646454881645,0.10530406,2615.9,2615.7,0.0322592]
[1646454881842,1.11950406,2615.9,2615.7,0.0322592]
[1646454882043,2.34750985,2615.9,2615.7,0.0322592]
[1646454882304,1.06950406,2615.9,2615.8,0.01072061]
[1646454882991,1.06950406,2615.9,2615.7,0.0322592]
[1646454883389,1.06950406,2615.9,2615.7,0.03493941]
[1646454884192,1.06950406,2615.9,2615.7,0.0322592]
[1646454884595,1.06950406,2615.9,2615.7,0.03493946]
[1646454885196,1.06950406,2615.9,2615.6,0.12603946]
[1646454885595,1.01950406,2615.9,2615.6,0.12603946]
[1646454885796,1.01950406,2615.9,2615.6,0.07603946]
[1646454886647,0.97940303,2615.7,2615.6,0.07603946]
[1646454886850,0.97940303,2615.7,2615.4,0.0147752]
[1646454889251,0.97940303,2615.7,2615.4,0.01744902]
[1646454889452,11.65,2615.6,2615.4,0.01744902]
[1646454889652,16.35,2615.5,2615.1,0.016492]
[1646454889902,0.191,2615.4,2615.1,0.016492]
[1646454890302,0.01879987,2615.8,2615.1,0.016492]
[1646454890303,0.191,2615.7,2615.1,0.016492]
[1646454890502,0.20979987,2615.8,2615.2,0.305]
[1646454891299,1.17649388,2615.6,2615.2,0.305]
[1646454892703,0.01879987,2615.8,2615.2,0.305]
[1646454894046,0.01879987,2615.8,2615.4,0.98589638]
[1646454896350,0.01879987,2615.8,2615.4,1.29089638]
[1646454896549,0.01879987,2615.8,2615.5,3.5]
[1646454896745,0.01879987,2615.8,2615.6,0.305]
[1646454898188,0.01879987,2615.8,2615.6,1.26123]
[1646454899195,0.01879987,2615.8,2615.7,3.8805]
[1646454899393,4.30625652,2616.7,2615.9,0.3805]
[1646454899590,4.30625652,2616.7,2616.1,0.3805]
[1646454899790,4.30625652,2616.7,2616.2,1.26091]
[1646454900194,4.30625652,2616.7,2616.3,1.17004397]
[1646454900394,4.30625652,2616.7,2616.4,0.305]
[1646454900593,0.3822,2617.0,2616.4,0.305]
[1646454900794,0.191,2617.4,2616.4,0.305]
[1646454901043,0.191,2617.5,2616.5,0.00275077]
[1646454901243,1.56750718,2617.4,2616.6,0.305]
[1646454901443,1.56750718,2617.4,2616.7,0.00275077]
[1646454901641,0.57354067,2616.5,2616.2,0.9559489]
[1646454901847,0.57354067,2616.5,2616.3,0.305]
[1646454902444,1.74811767,2616.5,2616.3,0.305]
[1646454903447,1.74811767,2616.5,2615.8,0.25]
[1646454903448,3.5,2616.4,2615.8,0.25]
[1646454903647,1.08770534,2616.0,2615.4,0.305]
[1646454903946,3.5,2615.9,2615.6,0.01053408]
[1646454904147,4.3039,2615.9,2615.6,0.01053408]
[1646454904647,0.8039,2615.9,2615.4,0.305]
[1646454904894,1.06001745,2615.6,2615.4,0.305]
[1646454905194,3.691,2616.3,2615.4,0.305]
[1646454905393,3.691,2616.4,2615.4,0.305]
[1646454905592,3.691,2616.4,2615.5,0.00273451]
[1646454905795,0.191,2616.4,2615.5,0.00273451]
[1646454906194,1.19433561,2616.3,2615.7,1.04092169]
[1646454906395,1.19433561,2616.3,2615.7,1.26386351]
[1646454906596,1.19433561,2616.3,2615.7,0.305]
[1646454907196,1.19433561,2616.3,2615.5,0.00273451]
[1646454907197,4.7,2616.2,2615.5,0.00273451]
[1646454907400,1.05636612,2615.8,2615.5,0.01053461]
[1646454907599,3.5,2615.7,2615.5,0.01053461]
[1646454907797,1.1662,2615.7,2615.5,0.01053461]
[1646454907996,4.6662,2615.7,2615.5,0.01053461]
[1646454908398,1.6124,2615.7,2615.1,0.016492]
[1646454908838,1.1662,2615.7,2615.1,1.00850739]
[1646454909038,1.05636612,2615.8,2615.1,1.00850739]
[1646454909239,0.191,2616.0,2615.1,1.00850739]
[1646454909439,0.191,2616.0,2615.1,1.31350739]
[1646454909643,5.691,2616.4,2615.1,1.31350739]
[1646454909842,17.15,2616.4,2615.3,0.00243632]
[1646454910444,1.09927527,2616.2,2615.6,1.00997852]
[1646454910643,1.09927527,2616.2,2615.1,0.321492]
[1646454910644,4.5,2616.1,2615.1,0.22421061]
[1646454911043,4.5,2616.1,2615.3,0.01218139]
[1646454911844,1.09927527,2616.2,2615.6,1.07941294]
[1646454912045,3.5,2616.3,2615.6,1.07941294]
[1646454912906,1.23435245,2616.2,2615.6,1.07941294]
[1646454913107,0.191,2616.3,2615.6,1.07941294]
[1646454913308,0.191,2616.3,2615.7,0.305]
[1646454913509,0.57354067,2616.5,2615.7,0.305]
[1646454913705,0.57354067,2616.5,2615.7,0.255]
[1646454913706,0.191,2616.4,2615.7,0.255]
[1646454913909,0.57354067,2616.5,2615.7,0.255]
[1646454914310,1.07151038,2616.3,2615.7,0.255]
[1646454915708,0.57354067,2616.5,2615.7,0.255]
[1646454915908,0.57354067,2616.5,2615.7,0.25770263]
[1646454916739,0.57354067,2616.5,2616.2,1.07260359]
[1646454916942,0.57354067,2616.5,2615.8,0.00270263]
[1646454917241,0.57354067,2616.5,2615.9,0.305]
[1646454918240,0.57354067,2616.5,2616.0,1.13072869]
[1646454918642,0.57354067,2616.5,2616.0,1.08072869]
[1646454919246,0.57354067,2616.5,2616.0,1.38572869]
[1646454921317,0.57354067,2616.5,2616.1,3.5]
[1646454921518,0.57354067,2616.5,2616.2,0.305]
[1646454923118,1.0391259,2616.4,2616.2,0.305]
[1646454924136,1.0391259,2616.4,2616.2,0.035]
[1646454925642,1.5677556,2616.3,2616.2,0.035]
[1646454926540,1.56775024,2616.3,2616.2,0.035]
[1646454926940,1.0391259,2616.4,2616.2,0.035]
[1646454927612,1.56772655,2616.3,2616.2,0.035]
[1646454928213,0.57354067,2616.5,2616.2,0.035]
[1646454928419,1.56766618,2616.4,2616.2,0.035]
[1646454928617,0.57354067,2616.5,2616.2,0.035]
[1646454929217,0.57354067,2616.5,2616.2,1.25138817]
[1646454930019,0.57354067,2616.5,2616.2,0.035]
[1646454931739,1.6766462,2616.5,2616.2,0.035]
[1646454932945,1.56770917,2616.4,2616.2,0.035]
[1646454933151,1.6766462,2616.5,2616.2,0.035]
[1646454933349,1.56772146,2616.4,2616.2,0.035]
[1646454933747,1.6766462,2616.5,2616.2,0.035]
[1646454934648,0.57354067,2616.5,2616.2,0.035]
[1646454935589,1.56769042,2616.4,2616.2,0.035]
[1646454936590,2.61609018,2616.4,2616.2,0.035]
[1646454936790,1.04839976,2616.4,2616.2,0.035]
[1646454937591,1.56772712,2616.3,2616.2,0.035]
[1646454938395,1.04839976,2616.4,2616.2,0.035]
[1646454939357,0.57354067,2616.5,2616.2,0.035]
[1646454941165,1.56767803,2616.4,2616.2,0.035]
[1646454942596,0.99861529,2616.3,2616.2,0.035]
[1646454942796,3.45549332,2616.3,2616.2,0.035]
[1646454942995,3.45549332,2616.3,2615.7,0.00270263]
[1646454942996,0.07,2616.1,2615.7,0.00270263]
[1646454943194,1.56767803,2616.0,2615.5,0.00270263]
[1646454943394,1.56767803,2616.0,2615.6,0.00849176]
[1646454943794,0.8775453,2615.9,2615.6,0.00849176]
[1646454943998,1.56767803,2615.8,2615.6,0.00849176]
[1646454944396,1.56767803,2615.8,2615.4,0.305]
[1646454945599,1.19216439,2615.5,2615.4,0.305]
[1646454948547,3.57,2616.1,2615.4,0.305]
[1646454948753,1.56791766,2616.0,2615.4,0.30770263]
[1646454948950,1.56791766,2616.0,2615.4,0.305]
[1646454949550,1.08863996,2615.9,2615.4,0.305]
[1646454950596,1.5679596,2615.8,2615.4,0.305]
[1646454951595,1.08863996,2615.9,2615.4,0.305]
[1646454953397,1.56799132,2615.8,2615.4,0.305]
[1646454954447,5.06799132,2615.8,2615.4,0.305]
[1646454954647,1.56799132,2615.7,2615.4,0.305]
[1646454955350,3.5,2615.6,2615.4,0.305]
[1646454955550,4.3,2615.4,2615.0,0.0319418]
[1646454955752,1.56826671,2615.3,2615.0,0.0319418]
[1646454955955,3.5,2615.2,2615.0,0.0319418]
[1646454956255,1.56826671,2615.1,2615.0,0.0319418]
[1646454956662,2.45877007,2615.1,2615.0,0.0319418]
[1646454956854,4.2,2614.9,2614.7,3.54883503]
[1646454957052,2.52517671,2614.8,2614.7,3.5461324]
[1646454957297,1.56826671,2614.8,2614.7,3.5461324]
[1646454957699,4.2,2614.9,2614.7,3.5461324]
[1646454958303,4.2,2614.5,2613.8,0.305]
[1646454958508,4.2,2614.5,2613.3,3.5290942]
[1646454958509,1.99577988,2614.4,2613.3,0.0290942]
[1646454958702,1.56894598,2614.3,2613.3,0.0290942]
[1646454958902,1.56894598,2614.3,2613.2,0.43745637]
[1646454959308,0.96369904,2613.7,2613.2,0.43745637]
[1646454959501,3.2949,2614.5,2613.2,0.43745637]
[1646454960105,3.2949,2614.5,2613.2,0.6085674]
[1646454960504,3.2949,2614.5,2613.6,1.22610163]
[1646454960505,1.1868742,2614.2,2613.6,1.22610163]
[1646454960704,3.8805,2614.7,2613.7,0.305]
[1646454960705,0.1912,2614.7,2613.7,0.305]
[1646454960906,4.639,2614.8,2613.7,0.47611103]
[1646454961179,4.639,2614.8,2613.2,0.13245637]
[1646454961180,5.20720195,2614.7,2613.2,0.13245637]
[1646454961471,1.56900199,2614.6,2613.3,0.0026754]
[1646454961672,3.6912,2614.5,2613.3,0.0026754]
[1646454961880,1.56900199,2614.4,2613.3,0.0026754]
[1646454962073,0.9509182,2613.5,2613.3,0.0026754]
[1646454962276,0.9509182,2613.5,2613.2,0.13245637]
[1646454962674,0.9509182,2613.5,2613.3,0.00972629]
[1646454963480,3.5,2613.4,2613.3,2.629e-05]
[1646454963677,3.5,2613.4,2613.0,0.0374421]
[1646454963678,0.02917887,2613.2,2613.0,0.0374421]
[1646454963876,4.28777887,2613.2,2613.0,0.0374421]
[1646454964076,3.5,2613.1,2613.0,0.0374421]
[1646454964278,4.4696464,2613.1,2613.0,0.0374421]
[1646454964482,3.75,2612.9,2612.5,0.03320148]
[1646454964680,3.5,2612.8,2612.4,0.00905698]
[1646454964896,3.75,2612.9,2612.4,0.02393216]
[1646454964897,4.7,2612.7,2612.4,0.02393216]
[1646454965498,1.06074113,2612.6,2612.4,0.02393216]
[1646454965900,5.0192,2612.7,2612.4,0.02393216]
[1646454966903,4.7,2612.6,2612.3,0.07158432]
[1646454967105,5.7285,2612.6,2612.3,0.07158432]
[1646454967503,0.94424059,2612.5,2612.4,0.00235336]
[1646454968103,4.44424059,2612.5,2612.4,0.00235336]
[1646454968303,4.7,2612.4,2612.1,0.00236996]
[1646454968549,4.7,2612.4,2612.3,0.0068992]
[1646454968749,8.2,2612.4,2612.3,0.0068992]
[1646454968949,8.2,2612.4,2612.3,0.00925265]
[1646454969550,4.7,2612.4,2612.3,0.0068992]
[1646454971754,3.4609,2612.6,2612.3,0.0068992]
[1646454972154,5.7278,2613.1,2612.3,0.0068992]
[1646454972410,0.1913,2613.1,2612.3,0.0068992]
[1646454972603,0.98731964,2613.2,2612.5,1.1836598]
[1646454973408,0.00264345,2613.1,2612.5,1.1836598]
[1646454973804,0.00264345,2613.1,2612.6,0.305]
[1646454974004,0.00264345,2613.1,2612.6,1.305]
[1646454974404,0.02917887,2613.2,2612.6,1.305]
[1646454974603,0.02917887,2613.2,2613.0,1.19787471]
[1646454974803,0.00264345,2613.1,2613.0,1.19787471]
[1646454975705,0.02917887,2613.2,2613.0,1.19787471]
[1646454975908,0.03182244,2613.2,2613.0,1.19787471]
[1646454976149,0.03182244,2613.2,2613.0,1.50287471]
[1646454976551,0.03182244,2613.2,2613.1,1.0]
[1646454976753,0.02917887,2613.2,2613.1,1.305]
[1646454977155,0.03182068,2613.2,2613.1,1.305]
[1646454977562,0.03182068,2613.2,2613.1,12.955]
[1646454977755,0.03182068,2613.2,2613.1,13.955]
[1646454977956,0.1913,2614.4,2613.1,13.955]
[1646454978158,0.1913,2614.4,2613.2,0.00266334]
[1646454978356,0.0026418,2613.3,2613.2,0.00266334]
[1646454978556,0.0026418,2613.3,2613.2,1.26179]
[1646454978755,0.0026418,2613.3,2613.2,12.955]
[1646454978955,4.18e-05,2613.3,2613.2,13.9227108]
[1646454979157,0.1913,2614.5,2613.2,17.9118]
[1646454979357,3.5085,2614.8,2613.5,11.65]
[1646454979555,0.1912,2614.7,2613.6,0.30766124]
[1646454979813,0.1912,2614.7,2613.7,0.00266124]
[1646454980017,0.1912,2614.7,2614.1,1.22200018]
[1646454980227,0.1912,2615.1,2614.2,1.305]
[1646454980420,0.1912,2615.2,2614.2,1.305]
[1646454980621,3.6912,2615.5,2614.2,1.305]
[1646454980827,3.5,2615.5,2614.2,1.305]
[1646454981225,2.71689988,2615.4,2614.2,1.305]
[1646454981419,5.06884988,2615.3,2614.2,1.305]
[1646454981620,0.1912,2615.2,2614.2,1.305]
[1646454981820,1.05041111,2614.5,2614.2,0.305]
[1646454983020,1.05235643,2614.5,2614.2,0.305]
[1646454983322,1.05235643,2614.5,2613.8,0.00266124]
[1646454983543,1.05235643,2614.5,2613.8,0.87545782]
[1646454983743,1.05235643,2614.5,2613.8,0.86747411]
[1646454983943,3.6912,2615.2,2613.8,0.86747411]
[1646454984145,0.00194532,2614.3,2613.8,0.86747411]
[1646454984343,0.00194532,2614.3,2613.8,2.12906241]
[1646454984543,0.00194532,2614.3,2613.8,1.17247411]
[1646454984946,0.00194532,2614.3,2614.0,1.0]
[1646454985147,0.922051,2615.0,2614.4,1.1550357]
[1646454985350,0.04361532,2615.1,2614.4,1.1550357]
[1646454985847,0.04361532,2615.1,2614.0,1.0]
[1646454986047,2.9,2615.0,2614.0,0.305]
[1646454986247,2.9,2615.0,2614.0,0.255]
[1646454986447,2.9,2615.0,2614.1,1.0]
[1646454986648,0.88931905,2614.5,2614.1,1.0]
[1646454987695,2.9,2615.0,2614.1,1.0]
[1646454987900,0.00264588,2614.4,2614.1,1.0]
[1646454988696,0.91228456,2614.3,2614.1,1.0]
[1646454989098,0.91228456,2614.3,2613.6,0.00262366]
[1646454989900,1.16252264,2613.9,2613.6,0.00262366]
[1646454990199,0.00256861,2614.1,2613.5,0.555]
[1646454990403,0.00256861,2614.1,2613.5,0.30762366]
[1646454991145,0.3805,2614.7,2613.5,0.30762366]
[1646454991348,1.15147405,2614.4,2613.8,1.05457148]
[1646454991548,0.00256865,2613.9,2613.8,0.00262366]
[1646454991744,0.00256865,2613.9,2613.6,0.00262366]
[1646454991945,0.00256865,2613.9,2613.7,0.305]
[1646454992349,1.15147405,2614.4,2613.7,0.305]
[1646454992546,1.15147405,2614.4,2613.7,0.30762366]
[1646454992751,0.00256865,2613.9,2613.7,1.30762366]
[1646454992960,0.00256865,2613.9,2613.7,1.305]
[1646454993651,3.5,2614.7,2613.7,1.305]
[1646454993951,7.1282,2614.8,2613.8,0.00262366]
[1646454994152,0.00250517,2613.9,2613.8,0.00262366]
[1646454994351,0.00250517,2613.9,2613.7,1.305]
[1646454994801,0.03389974,2614.0,2613.7,1.305]
[1646454995005,0.00250517,2613.9,2613.7,1.305]
[1646454995406,0.00250517,2613.9,2613.7,12.955]
[1646454995709,0.00250517,2613.9,2613.7,13.955]
[1646454996105,0.03389974,2614.0,2613.7,12.955]
[1646454996308,0.00250517,2613.9,2613.7,12.955]
[1646454996505,0.00250517,2613.9,2613.8,12.65]
[1646454996707,0.00250517,2613.9,2613.8,13.955]
[1646454997307,0.03389974,2614.0,2613.8,13.955]
[1646454997509,0.03641918,2614.0,2613.8,13.955]
[1646454998556,0.03389974,2614.0,2613.8,13.955]
[1646454998749,0.03641917,2614.0,2613.8,13.955]
[1646454999552,1.04461377,2614.8,2613.8,13.955]
[1646454999751,0.1912,2615.1,2613.8,13.955]
[1646454999951,0.00251943,2614.0,2613.8,13.955]
[1646455000554,7.42251943,2614.7,2614.0,11.65]
[1646455000753,7.42251943,2614.7,2614.0,12.955]
[1646455000957,7.42251943,2614.7,2614.2,0.92524651]
[1646455001158,7.47,2614.9,2614.2,0.92524651]
[1646455001359,0.1912,2615.2,2614.3,0.305]
[1646455001574,1.56854133,2615.1,2614.4,3.0]
[1646455001756,0.1912,2615.6,2614.5,0.305]
[1646455001956,1.5684517,2615.5,2615.3,1.0]
[1646455002156,1.7594517,2615.4,2615.3,1.0]
[1646455002818,1.5684517,2615.4,2615.3,1.0]
[1646455003625,1.5684517,2615.4,2615.0,11.97713759]
[1646455003821,0.93212934,2615.7,2615.0,11.97713759]
[1646455004021,1.56830556,2615.6,2615.3,1.0]
[1646455004624,1.57095113,2615.6,2615.3,1.0]
[1646455005023,0.00264557,2615.6,2615.3,1.0]
[1646455005724,1.56824142,2615.9,2615.3,1.0]
[1646455005924,0.00264557,2615.6,2615.3,1.0]
[1646455006347,0.00264557,2615.6,2615.3,4.5]
[1646455006751,1.22584351,2615.9,2615.3,5.5]
[1646455007155,0.00264557,2615.6,2615.3,2.0]
[1646455007353,0.00264557,2615.6,2615.3,1.0]
[1646455007953,1.22584351,2615.9,2615.3,1.0]
[1646455008352,0.00264557,2615.6,2615.3,1.0]
[1646455009153,1.22584351,2615.9,2615.3,1.0]
[1646455009552,0.00264557,2615.6,2615.5,0.06653775]
[1646455010401,1.22584351,2615.9,2615.5,0.06653775]
[1646455010602,1.56830198,2615.8,2615.5,0.06653775]
[1646455010802,0.00264554,2615.7,2615.5,0.06653775]
[1646455011414,1.57094752,2615.7,2615.5,0.06653775]
[1646455011603,1.56830198,2615.7,2615.5,0.06653775]
[1646455012004,1.57094751,2615.7,2615.5,0.06653775]
[1646455012602,1.57094751,2615.7,2615.5,0.01653775]
[1646455012803,1.56830198,2615.7,2615.5,0.01653775]
[1646455013103,1.57087703,2615.7,2615.5,0.01653775]
[1646455013954,1.56830198,2615.7,2615.5,0.01653775]
[1646455014353,1.57087703,2615.7,2615.5,0.01653775]
[1646455014553,0.00257505,2615.7,2615.5,0.06698295]
[1646455015155,1.56825907,2615.8,2615.5,0.06698295]
[1646455015556,0.00257505,2615.7,2615.5,0.06698295]
[1646455016559,1.56816103,2616.0,2615.5,0.06698295]
[1646455016756,0.0025044,2615.7,2615.6,1.06605013]
[1646455016956,0.0025044,2615.7,2615.6,2.06605013]
[1646455017601,1.56816103,2616.0,2615.6,2.06605013]
[1646455018001,0.00250439,2615.8,2615.6,2.06605013]
[1646455018403,0.00250439,2615.8,2615.7,1.0]
[1646455018604,0.00250439,2615.8,2615.7,1.305]
[1646455018806,1.56816103,2616.0,2615.7,5.7608616]
[1646455019212,0.00250437,2615.9,2615.7,5.7608616]
[1646455019405,0.00250437,2615.9,2615.8,3.5]
[1646455019605,0.00250437,2615.9,2615.8,4.805]
[1646455019805,0.00250437,2615.9,2615.8,5.805]
[1646455020007,0.07,2616.1,2615.8,5.805]
[1646455020305,0.00251866,2616.0,2615.8,4.805]
[1646455020507,0.00251866,2616.0,2615.9,3.5]
[1646455020707,0.00251866,2616.0,2615.9,5.805]
[1646455021356,0.07,2616.1,2616.0,1.08372105]
[1646455021559,0.07251864,2616.1,2616.0,4.88872105]
[1646455021764,0.07251864,2616.1,2616.0,5.88872105]
[1646455022362,7.8524,2617.0,2616.1,4.7]
[1646455022562,1.56750516,2616.9,2616.2,4.1855]
[1646455022958,1.56750516,2616.9,2616.2,5.1855]
[1646455023460,1.56750516,2616.9,2616.5,1.10854551]
[1646455023659,1.56750516,2616.9,2616.5,1.41354551]
[1646455023860,0.25838264,2616.4,2616.3,0.9556509]
[1646455024060,0.25838264,2616.4,2616.3,2.34771162]
[1646455024460,0.20838264,2616.4,2616.3,3.30333162]
[1646455024903,0.20838264,2616.4,2616.3,4.30333162]
[1646455025107,0.20838264,2616.4,2616.3,3.60833162]
[1646455025305,0.20838264,2616.4,2616.3,4.60833162]
[1646455025705,0.20838264,2616.4,2616.3,4.22783162]
[1646455026305,0.20838264,2616.4,2616.3,3.27221162]
[1646455026705,0.20838264,2616.4,2616.3,2.31656072]
[1646455027106,0.20838264,2616.4,2616.3,1.31656072]
[1646455027507,0.20838264,2616.4,2616.3,0.305]
[1646455029062,0.20838264,2616.4,2616.3,1.29674012]
[1646455031559,0.20838264,2616.4,2616.3,3.96124012]
[1646455031861,0.20838264,2616.4,2616.3,4.96124012]
[1646455032303,0.00257681,2616.5,2616.3,7.96124012]
[1646455032502,0.00257681,2616.5,2616.4,7.37078126]
[1646455032705,0.3825,2617.6,2616.5,7.3645]
[1646455032905,3.5,2617.9,2616.6,12.01354171]
[1646455033111,3.5,2617.9,2616.7,2.6645]
[1646455033310,1.17642206,2617.7,2617.0,1.06656565]
[1646455033608,1.17642206,2617.7,2617.1,0.305]
[1646455034811,0.00193889,2617.5,2617.1,0.305]
[1646455035609,1.56709079,2618.0,2617.1,0.305]
[1646455035808,4.50613376,2618.2,2617.8,1.0]
[1646455036052,1.02363376,2618.2,2617.8,1.0]
[1646455036256,0.191,2618.4,2617.8,1.0]
[1646455036454,1.56694421,2618.3,2617.8,1.0]
[1646455037055,0.00264723,2618.2,2617.8,0.305]
[1646455037458,0.00264723,2618.2,2618.1,2.05163099]
[1646455037659,2.16930851,2618.9,2618.1,3.03183099]
[1646455037857,0.98620851,2618.9,2618.2,3.5]
[1646455038056,0.98620851,2618.9,2618.1,3.05163099]
[1646455038254,0.98620851,2618.9,2618.1,2.05163099]
[1646455038455,0.98620851,2618.9,2618.1,3.05163099]
[1646455038856,0.98620851,2618.9,2618.1,2.0]
[1646455039057,0.98620851,2618.9,2618.1,1.0]
[1646455039256,0.98620851,2618.9,2617.8,0.88649703]
[1646455039456,0.98620851,2618.9,2618.5,1.0]
[1646455039658,1.50691508,2618.4,2617.8,0.88649703]
[1646455040108,1.50691508,2618.4,2618.2,1.0]
[1646455040305,0.87194117,2618.3,2618.2,1.0]
[1646455040505,0.87194117,2618.3,2617.3,1.305]
[1646455040710,0.87194117,2618.3,2617.3,0.305]
[1646455041106,0.87194117,2618.3,2617.4,1.0]
[1646455041907,1.03387766,2617.6,2617.4,1.0]
[1646455042305,1.03387766,2617.6,2617.1,0.1909]
[1646455042506,0.98387766,2617.6,2617.5,1.0]
[1646455044056,0.98387766,2617.6,2617.0,0.33437315]
[1646455044457,0.98387766,2617.6,2617.5,1.0]
[1646455046257,0.98387766,2617.6,2617.1,0.191]
[1646455046661,0.98387766,2617.6,2617.1,1.0]
[1646455047058,0.98387766,2617.6,2616.7,1.25]
[1646455047312,0.87857053,2617.0,2616.9,1.0]
[1646455047511,0.191,2618.0,2616.9,1.0]
[1646455049010,0.92403083,2617.8,2617.0,0.99481951]
[1646455049814,0.92403083,2617.8,2616.9,5.5]
[1646455050620,0.87403083,2617.8,2616.9,5.5]
[1646455050915,0.87403083,2617.8,2616.9,6.38590339]
[1646455051158,0.87403083,2617.8,2616.9,2.88590339]
[1646455051357,0.87403083,2617.8,2616.9,1.88590339]
[1646455051556,0.87403083,2617.8,2617.0,3.5]
[1646455051755,0.87403083,2617.8,2617.0,1.0]
[1646455052156,0.87403083,2617.8,2616.9,1.88590339]
[1646455053557,0.87403083,2617.8,2616.9,2.45625125]
[1646455054359,0.87403083,2617.8,2617.0,4.45543]
[1646455054805,0.87403083,2617.8,2617.0,5.45543]
[1646455055207,3.6323,2618.1,2617.0,6.88694553]
[1646455055409,3.6323,2618.1,2617.4,1.0]
[1646455057211,0.88928711,2617.9,2617.4,1.0]
[1646455057411,3.6323,2618.1,2617.4,1.0]
[1646455057613,1.56701386,2618.0,2617.4,4.7603009]
[1646455057811,1.56701386,2618.0,2617.4,5.7603009]
[1646455058011,1.56701386,2618.0,2617.9,1.0]
[1646455058415,2.72284093,2618.0,2617.9,1.0]
[1646455059261,2.62284093,2618.0,2617.9,1.0]
[1646455059862,1.56701386,2618.0,2617.9,1.0]
[1646455060764,1.56701386,2618.3,2617.9,1.0]
[1646455060967,1.56701386,2618.2,2617.9,1.57058553]
[1646455061966,1.56701386,2618.2,2617.9,1.0]
[1646455062166,1.56701386,2618.2,2617.8,1.0]
[1646455062407,2.26487049,2618.2,2617.4,0.305]
[1646455062608,1.56701386,2618.1,2617.4,0.305]
[1646455062809,2.26487049,2618.1,2617.4,0.305]
[1646455063009,1.22653065,2617.8,2617.4,0.305]
[1646455063208,1.56701386,2617.7,2617.4,0.305]
[1646455063408,1.56701386,2617.7,2617.6,1.0]
[1646455064010,0.3664626,2617.4,2617.2,4.5]
[1646455064408,0.3664626,2617.4,2617.3,1.0]
[1646455065208,1.93349464,2617.4,2617.3,1.0]
[1646455066263,0.3664626,2617.4,2617.3,1.0]
[1646455067259,0.3664626,2617.4,2617.3,12.65]
[1646455067460,0.3664626,2617.4,2617.3,4.5]
[1646455067661,0.3664626,2617.4,2617.3,2.0]
[1646455067863,0.3664626,2617.4,2617.3,1.0]
[1646455068163,0.3664626,2617.4,2617.3,4.5]
[1646455068363,0.3664626,2617.4,2617.3,5.5]
[1646455068564,0.3664626,2617.4,2617.3,17.15]
[1646455069803,0.3664626,2617.4,2617.3,17.455]
[1646455070205,0.3664626,2617.4,2617.3,2.305]
[1646455070406,1.93348687,2617.4,2617.3,2.305]
[1646455070605,1.93348687,2617.4,2617.3,12.955]
[1646455070804,1.93348687,2617.4,2617.3,17.455]
[1646455071208,1.93348687,2617.4,2617.3,2.305]
[1646455071607,1.93348687,2617.4,2617.3,1.305]
[1646455072410,1.93348687,2617.4,2617.3,12.955]
[1646455072611,1.93348687,2617.4,2617.3,13.955]
[1646455080318,0.69785663,2618.0,2617.3,17.455]
[1646455080522,0.69785663,2618.0,2617.5,11.65]
[1646455080523,1.36082587,2618.0,2617.5,11.65]
[1646455080722,1.36082587,2618.0,2617.7,11.65]
[1646455080920,1.20184546,2618.3,2617.9,12.56036223]
[1646455081164,0.00244546,2618.3,2618.2,1.0]
[1646455081364,1.50691508,2618.4,2618.2,1.0]
[1646455081764,0.00234131,2618.3,2618.2,1.0]
[1646455082661,1.50691508,2618.4,2618.2,1.0]
[1646455082862,1.50925644,2618.4,2618.1,2.9101989]
[1646455083065,1.50925644,2618.4,2618.3,1.0]